[Event "*** SCC Grand Prix: Titled Tuesday Blitz"]
[Site "Chess.com"]
[Date "2020.08.25"]
[Round "6"]
[White "TurboSteen"]
[Black "Quiet_Desperation"]
[Result "1-0"]
[WhiteElo "2060"]
[BlackElo "2274"]
[TimeControl "180+1"]
[EndTime "11:08:25 PDT"]
[Termination "TurboSteen won by checkmate"]

1. e4 {[%clk 0:02:57.6]} 1... e6 {[%clk 0:02:57.7]} 2. d4 {[%clk 0:02:55.5]}
2... d5 {[%clk 0:02:57.7]} 3. Nd2 {[%clk 0:02:55.8]} 3... Nf6 {[%clk 0:02:57.6]}
4. e5 {[%clk 0:02:54.3]} 4... Nfd7 {[%clk 0:02:57.7]} 5. c3 {[%clk 0:02:54.7]}
5... c5 {[%clk 0:02:57.8]} 6. Bd3 {[%clk 0:02:54.6]} 6... Nc6 {[%clk 0:02:57.9]}
7. Ne2 {[%clk 0:02:54.7]} 7... cxd4 {[%clk 0:02:58]} 8. cxd4 {[%clk 0:02:53.2]}
8... f6 {[%clk 0:02:57.8]} 9. exf6 {[%clk 0:02:53]} 9... Nxf6 {[%clk 0:02:57.9]}
10. Nf3 {[%clk 0:02:52.5]} 10... Bd6 {[%clk 0:02:55.9]} 11. O-O {[%clk
0:02:52.6]} 11... Qc7 {[%clk 0:02:54.6]} 12. h3 {[%clk 0:01:47]} 12... O-O
{[%clk 0:02:53.5]} 13. Be3 {[%clk 0:01:43.8]} 13... Bd7 {[%clk 0:02:52.5]} 14.
Re1 {[%clk 0:01:33.9]} 14... Be8 {[%clk 0:02:52.3]} 15. Ng5 {[%clk 0:01:14.9]}
15... Bd7 {[%clk 0:02:39.4]} 16. Nf3 {[%clk 0:01:07.1]} 16... a6 {[%clk
0:02:27]} 17. Rc1 {[%clk 0:00:59.9]} 17... Rae8 {[%clk 0:02:14.6]} 18. a3 {[%clk
0:00:57.3]} 18... Qb8 {[%clk 0:02:13.6]} 19. b4 {[%clk 0:00:55.4]} 19... e5
{[%clk 0:02:11.4]} 20. dxe5 {[%clk 0:00:52.1]} 20... Nxe5 {[%clk 0:02:11]} 21.
Nxe5 {[%clk 0:00:51.1]} 21... Bxe5 {[%clk 0:02:10.3]} 22. Bd4 {[%clk 0:00:49.9]}
22... Kh8 {[%clk 0:01:30.7]} 23. Bxe5 {[%clk 0:00:46.5]} 23... Rxe5 {[%clk
0:01:24.6]} 24. Nd4 {[%clk 0:00:44.2]} 24... Rfe8 {[%clk 0:01:16]} 25. Qd2
{[%clk 0:00:42.1]} 25... h6 {[%clk 0:01:04.1]} 26. Rxe5 {[%clk 0:00:37.4]} 26...
Qxe5 {[%clk 0:00:58.6]} 27. Nf3 {[%clk 0:00:35.3]} 27... Qh5 {[%clk 0:00:53.4]}
28. Re1 {[%clk 0:00:25.2]} 28... Bxh3 {[%clk 0:00:47.4]} 29. Rxe8+ {[%clk
0:00:18.8]} 29... Nxe8 {[%clk 0:00:46]} 30. Qe3 {[%clk 0:00:16.4]} 30... Bg4
{[%clk 0:00:37.3]} 31. Ne5 {[%clk 0:00:14.6]} 31... Nf6 {[%clk 0:00:36.6]} 32.
Bg6 {[%clk 0:00:10]} 32... Qh4 {[%clk 0:00:29.5]} 33. Nf7+ {[%clk 0:00:05.8]}
33... Kg8 {[%clk 0:00:29.3]} 34. Qe7 {[%clk 0:00:05.2]} 34... Ne4 {[%clk
0:00:07.3]} 35. Qe8# {[%clk 0:00:03.4]} 1-0

[Event "*** SCC Grand Prix: Titled Tuesday Blitz"]
[Site "Chess.com"]
[Date "2020.08.25"]
[Round "6"]
[White "Oleksandr_Bortnyk"]
[Black "DenLaz"]
[Result "1-0"]
[WhiteElo "2935"]
[BlackElo "2709"]
[TimeControl "180+1"]
[EndTime "11:08:29 PDT"]
[Termination "Oleksandr_Bortnyk won by resignation"]

1. d4 {[%clk 0:03:00.9]} 1... d5 {[%clk 0:02:57.7]} 2. Nc3 {[%clk 0:03:00.9]}
2... Nf6 {[%clk 0:02:57.6]} 3. Bf4 {[%clk 0:03:00.9]} 3... a6 {[%clk 0:02:57.8]}
4. e3 {[%clk 0:03:01.2]} 4... b5 {[%clk 0:02:57.1]} 5. Nf3 {[%clk 0:03:00.4]}
5... Bb7 {[%clk 0:02:56.3]} 6. Ne5 {[%clk 0:02:55.7]} 6... e6 {[%clk 0:02:55.2]}
7. g4 {[%clk 0:02:55.5]} 7... Nfd7 {[%clk 0:02:52.1]} 8. Qf3 {[%clk 0:02:54.3]}
8... Nxe5 {[%clk 0:02:50.7]} 9. Bxe5 {[%clk 0:02:55.2]} 9... Nd7 {[%clk
0:02:45.4]} 10. Bf4 {[%clk 0:02:55.7]} 10... Bd6 {[%clk 0:02:39.8]} 11. Ne2
{[%clk 0:02:47.2]} 11... e5 {[%clk 0:02:32.4]} 12. Bg3 {[%clk 0:02:32.8]} 12...
Qe7 {[%clk 0:02:22.2]} 13. O-O-O {[%clk 0:02:29.4]} 13... O-O-O {[%clk
0:02:10.2]} 14. h4 {[%clk 0:02:26.3]} 14... Kb8 {[%clk 0:02:04.8]} 15. h5 {[%clk
0:02:24.5]} 15... b4 {[%clk 0:01:53.2]} 16. Kb1 {[%clk 0:02:22.2]} 16... c5
{[%clk 0:01:45.7]} 17. Nc1 {[%clk 0:02:17.4]} 17... e4 {[%clk 0:01:32.8]} 18.
Bxd6+ {[%clk 0:02:08.5]} 18... Qxd6 {[%clk 0:01:32.3]} 19. Qxf7 {[%clk
0:02:09.4]} 19... c4 {[%clk 0:00:49]} 20. Qf4 {[%clk 0:02:08.2]} 20... Qxf4
{[%clk 0:00:40.2]} 21. exf4 {[%clk 0:02:09.1]} 21... g6 {[%clk 0:00:40.9]} 22.
g5 {[%clk 0:01:47]} 22... Rdf8 {[%clk 0:00:21.7]} 23. Ne2 {[%clk 0:01:36.5]}
23... Nb6 {[%clk 0:00:15.2]} 24. Bh3 {[%clk 0:01:36.1]} 24... gxh5 {[%clk
0:00:12.7]} 25. Be6 {[%clk 0:01:34.7]} 25... Bc8 {[%clk 0:00:08.7]} 26. Bxc8
{[%clk 0:01:34.4]} 26... Nxc8 {[%clk 0:00:09.4]} 27. Rxh5 {[%clk 0:01:35.1]}
27... Nd6 {[%clk 0:00:09.6]} 28. Rh6 {[%clk 0:01:35]} 28... Kc7 {[%clk
0:00:06.4]} 29. Rdh1 {[%clk 0:01:34.2]} 29... Nf5 {[%clk 0:00:05.9]} 30. Rxa6
{[%clk 0:01:27.9]} 30... Rfg8 {[%clk 0:00:04.5]} 31. Ra7+ {[%clk 0:01:20.6]}
31... Kb6 {[%clk 0:00:03.7]} 32. Raxh7 {[%clk 0:01:21.5]} 32... Rxh7 {[%clk
0:00:03.8]} 33. Rxh7 {[%clk 0:01:22.4]} 33... Kc6 {[%clk 0:00:03.8]} 34. c3
{[%clk 0:01:13.4]} 34... b3 {[%clk 0:00:03.2]} 35. axb3 {[%clk 0:01:13.2]} 35...
cxb3 {[%clk 0:00:04.1]} 36. Nc1 {[%clk 0:01:10.8]} 36... Nd6 {[%clk 0:00:03.4]}
37. Nxb3 {[%clk 0:01:07.2]} 37... Rf8 {[%clk 0:00:04]} 38. Na5+ {[%clk 0:00:35]}
38... Kb5 {[%clk 0:00:03.9]} 39. Rh6 {[%clk 0:00:35.9]} 39... Nf5 {[%clk
0:00:03.5]} 40. Rf6 {[%clk 0:00:36.5]} 40... Rxf6 {[%clk 0:00:02.4]} 41. gxf6
{[%clk 0:00:37.4]} 41... Nd6 {[%clk 0:00:02.9]} 42. Nb3 {[%clk 0:00:37.2]} 42...
Kc4 {[%clk 0:00:02.4]} 43. Nc5 {[%clk 0:00:37.1]} 43... Nf7 {[%clk 0:00:02.7]}
44. Ne6 {[%clk 0:00:37.6]} 44... Kd3 {[%clk 0:00:02.1]} 45. Ng5 {[%clk
0:00:38.1]} 45... Nd6 {[%clk 0:00:02.3]} 46. f7 {[%clk 0:00:37.7]} 46... Nxf7
{[%clk 0:00:02.6]} 47. Nxf7 {[%clk 0:00:38.6]} 47... Ke2 {[%clk 0:00:03.5]} 48.
Ne5 {[%clk 0:00:38.8]} 48... Kxf2 {[%clk 0:00:04]} 49. f5 {[%clk 0:00:39.7]}
49... e3 {[%clk 0:00:04.2]} 50. Ng4+ {[%clk 0:00:40.1]} 50... Kf3 {[%clk
0:00:04.4]} 51. Nxe3 {[%clk 0:00:41]} 51... Kxe3 {[%clk 0:00:05]} 52. f6 {[%clk
0:00:41.9]} 1-0

[Event "*** SCC Grand Prix: Titled Tuesday Blitz"]
[Site "Chess.com"]
[Date "2020.08.25"]
[Round "6"]
[White "jefferyx"]
[Black "Arjun2002"]
[Result "1/2-1/2"]
[WhiteElo "2908"]
[BlackElo "2720"]
[TimeControl "180+1"]
[EndTime "11:08:30 PDT"]
[Termination "Game drawn by repetition"]

1. d4 {[%clk 0:03:00.9]} 1... d5 {[%clk 0:03:00.2]} 2. c4 {[%clk 0:03:01.3]}
2... c6 {[%clk 0:03:00.7]} 3. Nf3 {[%clk 0:03:01.8]} 3... Nf6 {[%clk 0:03:01]}
4. cxd5 {[%clk 0:03:02.7]} 4... cxd5 {[%clk 0:03:00.9]} 5. Nc3 {[%clk
0:03:03.6]} 5... Nc6 {[%clk 0:03:01.2]} 6. Bf4 {[%clk 0:03:04.2]} 6... Ne4
{[%clk 0:03:01.3]} 7. Nd2 {[%clk 0:03:00.1]} 7... Nxc3 {[%clk 0:02:58.6]} 8.
bxc3 {[%clk 0:03:01]} 8... e6 {[%clk 0:02:58.7]} 9. e3 {[%clk 0:03:01.4]} 9...
Bd6 {[%clk 0:02:58.8]} 10. Qg4 {[%clk 0:02:56.5]} 10... O-O {[%clk 0:02:51.9]}
11. Bh6 {[%clk 0:02:56.1]} 11... Qf6 {[%clk 0:02:50.7]} 12. Bg5 {[%clk
0:02:55.9]} 12... Qg6 {[%clk 0:02:47.8]} 13. Qh4 {[%clk 0:02:22.1]} 13... e5
{[%clk 0:02:45.8]} 14. dxe5 {[%clk 0:02:23]} 14... Bxe5 {[%clk 0:02:43.1]} 15.
Rc1 {[%clk 0:02:19.3]} 15... Bf5 {[%clk 0:02:14.1]} 16. Bf4 {[%clk 0:02:18.2]}
16... Bf6 {[%clk 0:02:12.9]} 17. Qg3 {[%clk 0:02:17.9]} 17... Rac8 {[%clk
0:02:11.8]} 18. Nb3 {[%clk 0:02:12.5]} 18... Rfe8 {[%clk 0:01:59.4]} 19. Be2
{[%clk 0:02:11.5]} 19... Ne5 {[%clk 0:01:41.8]} 20. Nd4 {[%clk 0:02:11.2]} 20...
Nd3+ {[%clk 0:01:39.7]} 21. Bxd3 {[%clk 0:02:11.7]} 21... Bxd3 {[%clk 0:01:40]}
22. Kd2 {[%clk 0:02:12.4]} 22... Bc4 {[%clk 0:01:37.8]} 23. Qxg6 {[%clk
0:02:12]} 23... hxg6 {[%clk 0:01:37.8]} 24. a4 {[%clk 0:02:06.7]} 24... Bd8
{[%clk 0:01:35]} 25. Rb1 {[%clk 0:02:04.7]} 25... Ba6 {[%clk 0:01:33.5]} 26. Nb5
{[%clk 0:02:03]} 26... Ba5 {[%clk 0:01:33.4]} 27. Rhc1 {[%clk 0:02:03.4]} 27...
Rc6 {[%clk 0:01:24.6]} 28. Nxa7 {[%clk 0:02:02.2]} 28... Rc4 {[%clk 0:01:23.6]}
29. Nb5 {[%clk 0:01:50.4]} 29... Rxa4 {[%clk 0:01:20.4]} 30. Nd6 {[%clk
0:01:50.4]} 30... Re7 {[%clk 0:01:15.8]} 31. Ra1 {[%clk 0:01:50.8]} 31... Rxa1
{[%clk 0:01:13]} 32. Rxa1 {[%clk 0:01:51.7]} 32... Bc7 {[%clk 0:01:13.1]} 33.
Nc8 {[%clk 0:01:50]} 33... Rd7 {[%clk 0:01:13.2]} 34. Bxc7 {[%clk 0:01:49.9]}
34... Rxc7 {[%clk 0:01:14.1]} 35. Nb6 {[%clk 0:01:50.5]} 35... Rc5 {[%clk
0:01:12]} 36. Ra4 {[%clk 0:01:51.1]} 36... Rb5 {[%clk 0:01:11.2]} 37. Rb4 {[%clk
0:01:51.1]} 37... Ra5 {[%clk 0:01:11.5]} 38. Ra4 {[%clk 0:01:48.4]} 38... Rb5
{[%clk 0:01:11]} 39. Rb4 {[%clk 0:01:45.7]} 39... Ra5 {[%clk 0:01:11.4]} 40. Rb2
{[%clk 0:01:35.1]} 40... Kf8 {[%clk 0:01:11.1]} 41. Nd7+ {[%clk 0:01:32.5]}
41... Ke7 {[%clk 0:01:10.9]} 42. Ne5 {[%clk 0:01:33.4]} 42... Ke6 {[%clk
0:01:09.6]} 43. Nf3 {[%clk 0:01:34.1]} 43... Ra1 {[%clk 0:01:07.7]} 44. Nd4+
{[%clk 0:01:35]} 44... Kd6 {[%clk 0:01:07.5]} 45. e4 {[%clk 0:01:09.9]} 45...
dxe4 {[%clk 0:01:06.9]} 46. Ke3 {[%clk 0:01:10.1]} 46... f5 {[%clk 0:01:06.7]}
47. Kf4 {[%clk 0:01:10.1]} 47... Rc1 {[%clk 0:01:03.5]} 48. Kg5 {[%clk
0:01:09.9]} 48... Rxc3 {[%clk 0:00:53.9]} 49. Kxg6 {[%clk 0:01:10.2]} 49... f4
{[%clk 0:00:54.4]} 50. Kf5 {[%clk 0:01:09.2]} 50... e3 {[%clk 0:00:51.1]} 51.
Kxf4 {[%clk 0:01:09.3]} 51... exf2 {[%clk 0:00:49.2]} 52. Rxf2 {[%clk
0:01:10.2]} 52... Bd3 {[%clk 0:00:44.3]} 53. Rb2 {[%clk 0:00:59.2]} 53... Rc7
{[%clk 0:00:33.2]} 54. Kg5 {[%clk 0:00:54.6]} 54... Kd5 {[%clk 0:00:28.9]} 55.
Nf5 {[%clk 0:00:54.3]} 55... b5 {[%clk 0:00:25]} 56. g4 {[%clk 0:00:54.8]} 56...
Kc4 {[%clk 0:00:22.4]} 57. Nd6+ {[%clk 0:00:54.7]} 57... Kc5 {[%clk 0:00:19.9]}
58. Nf5 {[%clk 0:00:53]} 58... Kc4 {[%clk 0:00:20]} 59. Nd6+ {[%clk 0:00:52.8]}
59... Kc5 {[%clk 0:00:20.3]} 60. Nf5 {[%clk 0:00:52.1]} 60... Kc4 {[%clk
0:00:20.5]} 1/2-1/2

[Event "*** SCC Grand Prix: Titled Tuesday Blitz"]
[Site "Chess.com"]
[Date "2020.08.25"]
[Round "6"]
[White "ZverevLev"]
[Black "alexrustemov"]
[Result "0-1"]
[WhiteElo "2349"]
[BlackElo "2635"]
[TimeControl "180+1"]
[EndTime "11:08:31 PDT"]
[Termination "alexrustemov won on time"]

1. e4 {[%clk 0:03:00.9]} 1... e6 {[%clk 0:02:59.3]} 2. d4 {[%clk 0:02:59.4]}
2... d5 {[%clk 0:02:59]} 3. Nc3 {[%clk 0:02:58.4]} 3... Bb4 {[%clk 0:02:57.7]}
4. e5 {[%clk 0:02:55.4]} 4... c5 {[%clk 0:02:57.2]} 5. a3 {[%clk 0:02:53.3]}
5... Bxc3+ {[%clk 0:02:56.5]} 6. bxc3 {[%clk 0:02:54.2]} 6... Ne7 {[%clk
0:02:54.4]} 7. Qg4 {[%clk 0:02:53.4]} 7... O-O {[%clk 0:02:53.6]} 8. Nf3 {[%clk
0:02:51.2]} 8... Nbc6 {[%clk 0:02:49.2]} 9. Bd2 {[%clk 0:02:49.7]} 9... f5
{[%clk 0:02:44.5]} 10. Qg3 {[%clk 0:02:47.1]} 10... Qb6 {[%clk 0:02:26.8]} 11.
dxc5 {[%clk 0:02:08.7]} 11... Qb2 {[%clk 0:02:22.5]} 12. Rd1 {[%clk 0:02:07]}
12... Qxc2 {[%clk 0:02:14.9]} 13. Be2 {[%clk 0:02:01]} 13... Qe4 {[%clk
0:02:12.9]} 14. Qf4 {[%clk 0:01:28.8]} 14... Ng6 {[%clk 0:02:08.4]} 15. Qxe4
{[%clk 0:01:27.7]} 15... fxe4 {[%clk 0:02:07]} 16. Nd4 {[%clk 0:01:27.6]} 16...
Ngxe5 {[%clk 0:02:05.9]} 17. O-O {[%clk 0:01:27.1]} 17... Na5 {[%clk 0:01:49.7]}
18. f4 {[%clk 0:01:18.6]} 18... Nec4 {[%clk 0:01:44.5]} 19. Bc1 {[%clk
0:01:16.3]} 19... Bd7 {[%clk 0:01:43.2]} 20. Bg4 {[%clk 0:00:54]} 20... Rae8
{[%clk 0:01:41.1]} 21. Rde1 {[%clk 0:00:48.7]} 21... g6 {[%clk 0:01:24.9]} 22.
Bd1 {[%clk 0:00:42.9]} 22... Nc6 {[%clk 0:01:16.7]} 23. a4 {[%clk 0:00:30.5]}
23... Ne7 {[%clk 0:01:00.9]} 24. Nb5 {[%clk 0:00:17]} 24... Bxb5 {[%clk
0:00:58.1]} 25. axb5 {[%clk 0:00:16.7]} 25... Rc8 {[%clk 0:00:59]} 26. Bg4
{[%clk 0:00:09.3]} 26... Kf7 {[%clk 0:00:56.4]} 27. c6 {[%clk 0:00:05.8]} 27...
bxc6 {[%clk 0:00:56.1]} 28. bxc6 {[%clk 0:00:06.7]} 28... Rxc6 {[%clk
0:00:55.6]} 29. Bh3 {[%clk 0:00:06.9]} 29... h5 {[%clk 0:00:51.8]} 30. g4 {[%clk
0:00:05.7]} 30... hxg4 {[%clk 0:00:50.2]} 31. Bxg4 {[%clk 0:00:06.6]} 31... Nf5
{[%clk 0:00:50.2]} 32. Kg2 {[%clk 0:00:03.8]} 32... a5 {[%clk 0:00:43.2]} 33.
Rf2 {[%clk 0:00:03.4]} 33... a4 {[%clk 0:00:42.8]} 34. h3 {[%clk 0:00:03.4]}
34... a3 {[%clk 0:00:40.2]} 35. Ra2 {[%clk 0:00:02.5]} 35... Ra8 {[%clk
0:00:38.1]} 36. Kf1 {[%clk 0:00:01.8]} 36... Nfd6 {[%clk 0:00:33.5]} 37. Ree2
{[%clk 0:00:02.7]} 37... Nb5 {[%clk 0:00:33]} 38. Rec2 {[%clk 0:00:01.8]} 38...
Ncd6 {[%clk 0:00:30.3]} 39. Ke2 {[%clk 0:00:01]} 39... Nxc3+ {[%clk 0:00:28.6]}
0-1

[Event "*** SCC Grand Prix: Titled Tuesday Blitz"]
[Site "Chess.com"]
[Date "2020.08.25"]
[Round "6"]
[White "ChelsieMonica"]
[Black "GAusal"]
[Result "1-0"]
[WhiteElo "2400"]
[BlackElo "2167"]
[TimeControl "180+1"]
[EndTime "11:08:31 PDT"]
[Termination "ChelsieMonica won on time"]

1. c4 {[%clk 0:02:57.2]} 1... e5 {[%clk 0:02:55]} 2. Nc3 {[%clk 0:02:56.3]} 2...
Nf6 {[%clk 0:02:50]} 3. g3 {[%clk 0:02:53.3]} 3... Nc6 {[%clk 0:02:46.8]} 4. Bg2
{[%clk 0:02:50.2]} 4... Bc5 {[%clk 0:02:46.5]} 5. Nf3 {[%clk 0:02:49.5]} 5... d6
{[%clk 0:02:43.7]} 6. O-O {[%clk 0:02:44.8]} 6... O-O {[%clk 0:02:44.1]} 7. d3
{[%clk 0:02:41.7]} 7... Bg4 {[%clk 0:02:39.9]} 8. h3 {[%clk 0:02:41.5]} 8...
Bxf3 {[%clk 0:02:36]} 9. Bxf3 {[%clk 0:02:41.1]} 9... Bd4 {[%clk 0:02:32.8]} 10.
Bg2 {[%clk 0:02:41]} 10... Bxc3 {[%clk 0:02:28.2]} 11. bxc3 {[%clk 0:02:40]}
11... h6 {[%clk 0:02:25.1]} 12. Rb1 {[%clk 0:02:23.6]} 12... Rb8 {[%clk
0:02:23.7]} 13. f4 {[%clk 0:02:09.1]} 13... exf4 {[%clk 0:02:19.1]} 14. Bxf4
{[%clk 0:02:09.6]} 14... Qe7 {[%clk 0:02:14.8]} 15. e4 {[%clk 0:02:06.3]} 15...
Ne5 {[%clk 0:02:11]} 16. Qd2 {[%clk 0:01:56.9]} 16... Nh5 {[%clk 0:02:07]} 17.
g4 {[%clk 0:01:49.2]} 17... Nxf4 {[%clk 0:02:02.7]} 18. Rxf4 {[%clk 0:01:50.1]}
18... Qg5 {[%clk 0:01:57.3]} 19. Rbf1 {[%clk 0:01:37.3]} 19... Ng6 {[%clk
0:01:51.6]} 20. R4f2 {[%clk 0:01:36]} 20... Qxd2 {[%clk 0:01:45.6]} 21. Rxd2
{[%clk 0:01:36.9]} 21... Nh4 {[%clk 0:01:41]} 22. Rb2 {[%clk 0:01:29]} 22... b6
{[%clk 0:01:40]} 23. Rff2 {[%clk 0:01:08.8]} 23... Rfe8 {[%clk 0:01:34.4]} 24.
Bh1 {[%clk 0:01:08.2]} 24... c5 {[%clk 0:01:28.8]} 25. Kh2 {[%clk 0:01:07.7]}
25... Ng6 {[%clk 0:01:22.6]} 26. Kg3 {[%clk 0:01:07.8]} 26... Ne5 {[%clk
0:01:18.8]} 27. Rbd2 {[%clk 0:01:05.9]} 27... Rbc8 {[%clk 0:01:12.3]} 28. h4
{[%clk 0:01:05.6]} 28... a6 {[%clk 0:01:04.7]} 29. a4 {[%clk 0:01:04.4]} 29...
f6 {[%clk 0:01:00.3]} 30. Bf3 {[%clk 0:01:04.1]} 30... Kh7 {[%clk 0:00:54.3]}
31. Be2 {[%clk 0:01:02.8]} 31... Rb8 {[%clk 0:00:50.1]} 32. Rb2 {[%clk 0:00:53]}
32... Kg8 {[%clk 0:00:40]} 33. Bf1 {[%clk 0:00:49.3]} 33... Kf7 {[%clk 0:00:35]}
34. Rb3 {[%clk 0:00:44.7]} 34... Rec8 {[%clk 0:00:33.8]} 35. Rfb2 {[%clk
0:00:44.1]} 35... Nd7 {[%clk 0:00:25.2]} 36. d4 {[%clk 0:00:44.4]} 36... Rh8
{[%clk 0:00:14.8]} 37. h5 {[%clk 0:00:44.4]} 37... Rhe8 {[%clk 0:00:12.6]} 38.
Kf4 {[%clk 0:00:44.3]} 38... Ke7 {[%clk 0:00:11.2]} 39. Bd3 {[%clk 0:00:44.5]}
39... Kd8 {[%clk 0:00:11.3]} 40. a5 {[%clk 0:00:44.7]} 40... Kc7 {[%clk
0:00:12.2]} 41. axb6+ {[%clk 0:00:45.1]} 41... Rxb6 {[%clk 0:00:12]} 42. Rxb6
{[%clk 0:00:45]} 42... Nxb6 {[%clk 0:00:11.9]} 43. Ra2 {[%clk 0:00:45.9]} 43...
Ra8 {[%clk 0:00:10.6]} 44. Kf5 {[%clk 0:00:46.4]} 44... Ra7 {[%clk 0:00:07.3]}
45. Kg6 {[%clk 0:00:46.7]} 45... Kd8 {[%clk 0:00:07.3]} 46. Be2 {[%clk
0:00:45.4]} 46... a5 {[%clk 0:00:06.9]} 47. Rb2 {[%clk 0:00:45.7]} 47... Nd7
{[%clk 0:00:06.2]} 48. Kxg7 {[%clk 0:00:45.2]} 48... a4 {[%clk 0:00:03.7]} 49.
Kxh6 {[%clk 0:00:44.8]} 49... a3 {[%clk 0:00:03.7]} 50. Ra2 {[%clk 0:00:45.3]}
1-0

[Event "*** SCC Grand Prix: Titled Tuesday Blitz"]
[Site "Chess.com"]
[Date "2020.08.25"]
[Round "6"]
[White "AndreyNeves"]
[Black "kobemagic"]
[Result "0-1"]
[WhiteElo "2192"]
[BlackElo "2413"]
[TimeControl "180+1"]
[EndTime "11:08:32 PDT"]
[Termination "kobemagic won on time"]

1. d4 {[%clk 0:03:00.9]} 1... Nf6 {[%clk 0:02:59.6]} 2. c4 {[%clk 0:03:00.1]}
2... c5 {[%clk 0:02:59.9]} 3. d5 {[%clk 0:02:59.5]} 3... b5 {[%clk 0:03:00.3]}
4. cxb5 {[%clk 0:02:59.7]} 4... a6 {[%clk 0:03:00.6]} 5. b6 {[%clk 0:03:00.3]}
5... d6 {[%clk 0:02:59.6]} 6. Nc3 {[%clk 0:03:00.5]} 6... g6 {[%clk 0:02:59.4]}
7. a4 {[%clk 0:03:00.8]} 7... a5 {[%clk 0:02:59.1]} 8. e4 {[%clk 0:02:59.8]}
8... Nbd7 {[%clk 0:02:57.6]} 9. Nf3 {[%clk 0:02:55.4]} 9... Bg7 {[%clk
0:02:56.7]} 10. Bb5 {[%clk 0:02:53.7]} 10... O-O {[%clk 0:02:56.7]} 11. O-O
{[%clk 0:02:48.3]} 11... Nxb6 {[%clk 0:02:56.8]} 12. Nd2 {[%clk 0:02:44.9]}
12... Ba6 {[%clk 0:02:55.1]} 13. Bxa6 {[%clk 0:02:38.3]} 13... Rxa6 {[%clk
0:02:56]} 14. Nb5 {[%clk 0:02:38.5]} 14... Qd7 {[%clk 0:02:45]} 15. Qc2 {[%clk
0:02:36.3]} 15... Rb8 {[%clk 0:02:43.8]} 16. Nc3 {[%clk 0:02:19.1]} 16... Raa8
{[%clk 0:02:29]} 17. b3 {[%clk 0:02:16.3]} 17... Ng4 {[%clk 0:02:10.9]} 18. h3
{[%clk 0:02:07.3]} 18... Nf6 {[%clk 0:02:06.5]} 19. Bb2 {[%clk 0:02:06.1]} 19...
Ne8 {[%clk 0:02:04.6]} 20. Nc4 {[%clk 0:01:57.7]} 20... Nxc4 {[%clk 0:02:03.2]}
21. bxc4 {[%clk 0:01:57.4]} 21... Rb4 {[%clk 0:01:56.8]} 22. Nd1 {[%clk
0:01:36.9]} 22... Bxb2 {[%clk 0:01:48.3]} 23. Nxb2 {[%clk 0:01:36.7]} 23... Rab8
{[%clk 0:01:43.8]} 24. Nd3 {[%clk 0:01:36.4]} 24... Rb3 {[%clk 0:01:39.2]} 25.
f4 {[%clk 0:01:25.5]} 25... Nf6 {[%clk 0:01:30]} 26. e5 {[%clk 0:01:17.6]} 26...
Nh5 {[%clk 0:01:21.7]} 27. f5 {[%clk 0:00:59.3]} 27... Ng3 {[%clk 0:01:19.8]}
28. e6 {[%clk 0:00:55.3]} 28... fxe6 {[%clk 0:01:19.3]} 29. fxe6 {[%clk
0:00:53]} 29... Qb7 {[%clk 0:01:18.3]} 30. Rf7 {[%clk 0:00:46.7]} 30... Nf5
{[%clk 0:01:12.9]} 31. Nf4 {[%clk 0:00:21.2]} 31... Rb2 {[%clk 0:00:53.7]} 32.
Qd3 {[%clk 0:00:15.8]} 32... Rb1+ {[%clk 0:00:42.7]} 33. Rxb1 {[%clk 0:00:14.1]}
33... Qxb1+ {[%clk 0:00:43.6]} 34. Qxb1 {[%clk 0:00:12.6]} 34... Rxb1+ {[%clk
0:00:44.5]} 35. Kh2 {[%clk 0:00:12.9]} 35... Rb7 {[%clk 0:00:42.3]} 36. g4
{[%clk 0:00:12.4]} 36... Nh6 {[%clk 0:00:42.3]} 37. g5 {[%clk 0:00:07.4]} 37...
Nxf7 {[%clk 0:00:41.7]} 38. exf7+ {[%clk 0:00:08.3]} 38... Kxf7 {[%clk
0:00:42.2]} 39. Ne6 {[%clk 0:00:09.1]} 39... Rb4 {[%clk 0:00:39.9]} 40. Nd8+
{[%clk 0:00:08]} 40... Ke8 {[%clk 0:00:37.5]} 41. Nc6 {[%clk 0:00:03.8]} 41...
Rxa4 {[%clk 0:00:37.5]} 42. Nxa5 {[%clk 0:00:04.7]} 42... Rxa5 {[%clk
0:00:37.5]} 0-1

[Event "*** SCC Grand Prix: Titled Tuesday Blitz"]
[Site "Chess.com"]
[Date "2020.08.25"]
[Round "6"]
[White "RodinMihail"]
[Black "markberk"]
[Result "1/2-1/2"]
[WhiteElo "2495"]
[BlackElo "2364"]
[TimeControl "180+1"]
[EndTime "11:08:33 PDT"]
[Termination "Game drawn by repetition"]

1. e4 {[%clk 0:03:00.9]} 1... c6 {[%clk 0:02:56.6]} 2. d4 {[%clk 0:03:00.4]}
2... d5 {[%clk 0:02:55.7]} 3. e5 {[%clk 0:03:00.9]} 3... c5 {[%clk 0:02:55.2]}
4. dxc5 {[%clk 0:03:00.1]} 4... Nc6 {[%clk 0:02:55.2]} 5. a3 {[%clk 0:03:00.5]}
5... Nxe5 {[%clk 0:02:54.1]} 6. b4 {[%clk 0:03:00.5]} 6... Nf6 {[%clk
0:02:52.5]} 7. Bb2 {[%clk 0:03:00.3]} 7... Nc6 {[%clk 0:02:52.1]} 8. Nf3 {[%clk
0:02:56.8]} 8... e6 {[%clk 0:02:51.1]} 9. Bd3 {[%clk 0:02:55.1]} 9... Be7 {[%clk
0:02:51.1]} 10. O-O {[%clk 0:02:54.7]} 10... O-O {[%clk 0:02:50.3]} 11. Nbd2
{[%clk 0:02:55.2]} 11... a5 {[%clk 0:02:48.4]} 12. c3 {[%clk 0:02:42.6]} 12...
e5 {[%clk 0:02:42.8]} 13. Bc2 {[%clk 0:02:29.7]} 13... e4 {[%clk 0:02:34.4]} 14.
Nd4 {[%clk 0:02:28.9]} 14... Bg4 {[%clk 0:02:28.4]} 15. Qb1 {[%clk 0:02:21.1]}
15... Qc7 {[%clk 0:02:08.5]} 16. N2b3 {[%clk 0:02:11.9]} 16... Ne5 {[%clk
0:02:03.7]} 17. Nb5 {[%clk 0:02:04.6]} 17... Qd7 {[%clk 0:02:01.7]} 18. N3d4
{[%clk 0:02:03.4]} 18... Bf3 {[%clk 0:01:55.4]} 19. h3 {[%clk 0:01:48.6]} 19...
Bh5 {[%clk 0:01:36]} 20. a4 {[%clk 0:01:25.6]} 20... Nf3+ {[%clk 0:01:35.2]} 21.
Kh1 {[%clk 0:01:20.1]} 21... Nd2 {[%clk 0:01:34.1]} 22. Qe1 {[%clk 0:01:14.6]}
22... Nxf1 {[%clk 0:01:33.8]} 23. Qxf1 {[%clk 0:01:15.5]} 23... Rfe8 {[%clk
0:01:27.2]} 24. Nb3 {[%clk 0:01:10.1]} 24... axb4 {[%clk 0:01:12.1]} 25. cxb4
{[%clk 0:01:11]} 25... Rac8 {[%clk 0:01:11.2]} 26. a5 {[%clk 0:01:10.1]} 26...
Qf5 {[%clk 0:01:07.7]} 27. N3d4 {[%clk 0:01:04.3]} 27... Qg6 {[%clk 0:00:59.5]}
28. f3 {[%clk 0:00:57]} 28... Qh6 {[%clk 0:00:50]} 29. f4 {[%clk 0:00:52.6]}
29... Bg4 {[%clk 0:00:45.3]} 30. Kg1 {[%clk 0:00:33.6]} 30... Bd7 {[%clk
0:00:44]} 31. Rd1 {[%clk 0:00:28.8]} 31... e3 {[%clk 0:00:43.3]} 32. Bd3 {[%clk
0:00:26.5]} 32... Ne4 {[%clk 0:00:42.6]} 33. Qf3 {[%clk 0:00:20.6]} 33... Bf6
{[%clk 0:00:37.9]} 34. Qxe3 {[%clk 0:00:20.2]} 34... Nc3 {[%clk 0:00:34.9]} 35.
Qd2 {[%clk 0:00:19]} 35... Nxd1 {[%clk 0:00:32.6]} 36. Qxd1 {[%clk 0:00:19.9]}
36... Qxf4 {[%clk 0:00:31.8]} 37. Kh1 {[%clk 0:00:20.4]} 37... g6 {[%clk
0:00:28.5]} 38. Bc1 {[%clk 0:00:19]} 38... Qg3 {[%clk 0:00:26.7]} 39. Nf3 {[%clk
0:00:18.4]} 39... Bxh3 {[%clk 0:00:21.2]} 40. gxh3 {[%clk 0:00:19]} 40... Qxh3+
{[%clk 0:00:20.4]} 41. Kg1 {[%clk 0:00:19.9]} 41... Qg3+ {[%clk 0:00:20.4]} 42.
Kh1 {[%clk 0:00:20]} 42... Qh3+ {[%clk 0:00:14.6]} 43. Kg1 {[%clk 0:00:20.9]}
43... Qg3+ {[%clk 0:00:14.4]} 44. Kh1 {[%clk 0:00:21.2]} 44... Qh3+ {[%clk
0:00:10.4]} 1/2-1/2